bitfinex/quotes_BTCUSD_20240723
["timestamp","ask_amount","ask_price","bid_price","bid_amount"]
[1721752292953,0.0633,66381.0,66369.0,0.0625]
[1721752293166,0.00849,66399.0,66378.0,0.301303]
[1721752293167,0.11133325,66384.0,66378.0,0.301303]
[1721752293365,0.0808,66384.0,66370.0,0.14701991]
[1721752293595,0.0808,66384.0,66371.0,0.09031967]
[1721752293816,0.0808,66384.0,66374.0,0.301321]
[1721752294006,0.0808,66384.0,66375.0,0.14701991]
[1721752294217,0.0808,66384.0,66381.0,0.150645]
[1721752294347,0.03986131,66388.0,66375.0,0.17001991]
[1721752294550,0.03986131,66388.0,66387.0,0.150631]
[1721752294551,0.00932806,66388.0,66387.0,0.150631]
[1721752294736,0.03053325,66390.0,66387.0,0.023]
[1721752294943,0.08,66391.0,66381.0,0.301286]
[1721752294944,0.08898172,66391.0,66381.0,0.301286]
[1721752295180,0.03053325,66384.0,66382.0,0.023]
[1721752295766,0.03053325,66384.0,66377.0,0.44832491]
[1721752295767,0.301257,66389.0,66379.0,0.023]
[1721752296041,0.03053325,66390.0,66382.0,0.150642]
[1721752296273,0.11951497,66391.0,66383.0,0.17364]
[1721752296403,0.08898172,66391.0,66384.0,0.017364]
[1721752296607,0.150625,66390.0,66385.0,0.023]
[1721752296826,0.150628,66389.0,66385.0,0.023]
[1721752297030,0.08898172,66391.0,66386.0,0.46738751]
[1721752297234,0.08,66391.0,66388.0,0.150627]
[1721752297397,0.08,66391.0,66387.0,0.150631]
[1721752297594,0.08,66391.0,66388.0,0.07433835]
[1721752298054,0.08,66391.0,66388.0,0.22496635]
[1721752298247,0.03053325,66390.0,66388.0,0.22496635]
[1721752298453,0.03053325,66390.0,66389.0,0.06923519]
[1721752298656,0.03053325,66390.0,66389.0,0.09223519]
[1721752299257,0.48240825,66390.0,66389.0,0.023]
[1721752299487,0.18115825,66390.0,66389.0,0.023]
[1721752299691,0.03053325,66390.0,66389.0,0.023]
[1721752299910,0.08,66391.0,66388.0,0.023]
[1721752299911,0.18116025,66389.0,66388.0,0.023]
[1721752300201,0.78366825,66389.0,66388.0,0.023]
[1721752300387,0.48241425,66389.0,66388.0,0.023]
[1721752300791,0.03053325,66384.0,66382.0,0.023]
[1721752301002,0.03053325,66376.0,66372.0,0.3765]
[1721752301200,0.03053325,66381.0,66374.0,0.301321]
[1721752301430,0.01049,66409.0,66398.0,0.287506]
[1721752301666,0.01049,66409.0,66398.0,0.7068]
[1721752301667,0.0575,66403.0,66398.0,0.7068]
[1721752301960,0.0575,66403.0,66386.0,0.05]
[1721752301961,0.03053325,66391.0,66386.0,0.2679]
[1721752302162,0.03053325,66381.0,66380.0,0.2679]
[1721752302375,0.03053325,66387.0,66380.0,0.31258799]
[1721752302497,0.03053325,66387.0,66380.0,0.46323399]
[1721752302709,0.03053325,66379.0,66375.0,0.2679]
[1721752302913,0.07348942,66394.0,66375.0,0.63993334]
[1721752302914,0.17273325,66387.0,66375.0,0.63993334]
[1721752303121,0.0808,66387.0,66382.0,0.150642]
[1721752303344,0.0808,66387.0,66381.0,0.2679]
[1721752303345,0.0808,66387.0,66383.0,0.15064]
[1721752303545,0.03053325,66385.0,66381.0,0.2679]
[1721752304032,0.03053325,66392.0,66382.0,1.18751991]
[1721752304216,0.03053325,66393.0,66391.0,0.2679]
[1721752304421,0.03053325,66398.0,66391.0,0.2679]
[1721752304572,0.03053325,66393.0,66391.0,0.2679]
[1721752304980,0.06989,66399.0,66391.0,0.2679]
[1721752304981,0.03053325,66392.0,66391.0,0.2679]
[1721752305251,0.03053325,66392.0,66391.0,0.2909]
[1721752305480,0.03053325,66390.0,66389.0,0.3765]
[1721752307023,0.03053325,66390.0,66382.0,0.672]
[1721752307024,0.03053325,66383.0,66382.0,0.672]
[1721752307243,0.03053325,66381.0,66373.0,0.7455]
[1721752307485,0.03053325,66383.0,66374.0,0.1276832]
[1721752307722,0.03053325,66383.0,66380.0,0.150647]
[1721752307950,0.150628,66389.0,66334.0,0.301503]
[1721752307951,0.03053325,66351.0,66334.0,0.301503]
[1721752308156,0.1052,66373.0,66323.0,0.0601]
[1721752308157,0.03053325,66349.0,66342.0,0.301464]
[1721752308358,0.03053325,66347.0,66343.0,0.00301423]
[1721752308569,0.03053325,66346.0,66337.0,0.30149]
[1721752308773,0.03053325,66346.0,66338.0,0.301485]
[1721752308925,0.03053325,66346.0,66342.0,0.150733]
[1721752309462,0.03053325,66343.0,66340.0,0.150738]
[1721752309685,0.03053325,66343.0,66336.0,0.106]
[1721752309889,0.03053325,66341.0,66339.0,0.15074]
[1721752310082,0.150723,66347.0,66339.0,0.15074]
[1721752310083,0.03053325,66343.0,66339.0,0.15074]
[1721752310295,0.03053325,66343.0,66342.0,0.000924]
[1721752310507,0.48272725,66343.0,66342.0,0.000924]
[1721752310829,0.03053325,66343.0,66342.0,0.000924]
[1721752311029,0.18126425,66343.0,66342.0,0.000924]
[1721752311529,0.03053325,66343.0,66342.0,0.000924]
[1721752311741,0.03053325,66347.0,66342.0,0.000924]
[1721752312094,0.03053325,66347.0,66344.0,0.150729]
[1721752312683,0.03053325,66345.0,66342.0,0.0334649]
[1721752312852,0.03053325,66345.0,66342.0,0.000924]
[1721752313062,0.03053325,66347.0,66342.0,0.000924]
[1721752313271,0.03053325,66347.0,66345.0,0.150727]
[1721752313495,0.03053325,66347.0,66344.0,0.150729]
[1721752313855,0.03053325,66356.0,66343.0,0.02444911]
[1721752314035,0.03053325,66355.0,66351.0,0.301426]
[1721752314274,0.03053325,66356.0,66345.0,0.30145]
[1721752314407,0.03053325,66353.0,66349.0,0.150716]
[1721752314750,0.03053325,66353.0,66351.0,0.150713]
[1721752314952,0.03053325,66356.0,66352.0,0.15071]
[1721752315194,0.301386,66361.0,66354.0,0.301412]
[1721752315195,0.03053325,66361.0,66354.0,0.301412]
[1721752315444,0.03053325,66359.0,66358.0,0.150696]
[1721752315613,0.03053325,66363.0,66346.0,0.301449]
[1721752315829,0.03053325,66362.0,66361.0,0.15069]
[1721752316224,0.03053325,66362.0,66353.0,0.301413]
[1721752316225,0.03053325,66362.0,66353.0,0.301417]
[1721752316443,0.03053325,66355.0,66349.0,0.301433]
[1721752316672,0.03053325,66355.0,66351.0,0.301425]
[1721752316844,0.03053325,66355.0,66352.0,0.301422]
[1721752317139,0.301389,66360.0,66346.0,0.0258393]
[1721752317140,0.03053325,66353.0,66346.0,0.0258393]
[1721752317370,0.03053325,66352.0,66347.0,0.023]
[1721752317611,0.03053325,66352.0,66343.0,0.609827]
[1721752317839,0.03053325,66347.0,66346.0,0.256723]
[1721752318066,0.03053325,66347.0,66346.0,0.106]
[1721752318299,0.48270025,66347.0,66346.0,0.106]
[1721752318519,0.03053325,66347.0,66346.0,0.106]
[1721752318755,0.78414525,66347.0,66346.0,0.106]
[1721752318996,0.48270025,66347.0,66346.0,0.106]
[1721752319224,0.78414525,66347.0,66346.0,0.106]
[1721752319454,0.48272725,66343.0,66342.0,0.000924]
[1721752319684,1.38556258,66343.0,66342.0,0.000924]
[1721752319904,1.44636258,66343.0,66342.0,0.000924]
[1721752320592,1.67433616,66343.0,66342.0,0.000924]
[1721752321019,1.76505563,66343.0,66342.0,0.000924]
[1721752321530,1.46359263,66343.0,66342.0,0.000924]
[1721752321761,0.03053325,66343.0,66342.0,0.000924]
[1721752322182,0.150727,66345.0,66342.0,0.000924]
[1721752322416,0.03053325,66347.0,66343.0,0.0151664]
[1721752322590,0.351338,66371.0,66342.0,0.151656]
[1721752322591,0.03053325,66357.0,66354.0,0.150706]
[1721752322726,0.150696,66359.0,66352.0,0.150709]
[1721752322946,0.03053325,66357.0,66344.0,0.17001991]
[1721752323150,0.03053325,66357.0,66345.0,0.01709439]
[1721752323351,0.03053325,66357.0,66352.0,0.150709]
[1721752323550,0.03053325,66357.0,66353.0,0.150708]
[1721752323756,0.03053325,66357.0,66349.0,0.301435]
[1721752323951,0.03053325,66357.0,66345.0,0.1641143]
[1721752324153,0.150693,66360.0,66354.0,0.150705]
[1721752324369,0.03053325,66363.0,66351.0,0.0829]
[1721752324569,0.03053325,66373.0,66352.0,0.18476991]
[1721752324771,0.03053325,66369.0,66353.0,0.301417]
[1721752324970,0.0636,66381.0,66357.0,0.301396]
[1721752324971,0.03053325,66365.0,66357.0,0.301396]
[1721752325178,0.03053325,66365.0,66358.0,0.17001991]
[1721752325380,0.03053325,66373.0,66360.0,0.301385]
[1721752325591,0.03053325,66373.0,66352.0,0.01475]
[1721752325592,0.03053325,66377.0,66361.0,0.17001991]
[1721752325792,0.0807,66385.0,66369.0,0.0657]
[1721752326019,0.03053325,66386.0,66370.0,0.22823259]
[1721752326227,0.03053325,66384.0,66371.0,0.05618326]
[1721752326430,0.07348942,66372.0,66361.0,0.023]
[1721752326644,0.03053325,66368.0,66362.0,0.14701991]
[1721752326919,0.07348942,66372.0,66364.0,0.301367]
[1721752326920,0.03053325,66371.0,66364.0,0.301367]
[1721752327157,0.07348942,66372.0,66366.0,0.301357]
[1721752327347,0.07348942,66372.0,66370.0,0.150669]
[1721752327549,0.07348942,66372.0,66367.0,0.301353]
[1721752327773,0.07348942,66372.0,66369.0,0.150672]
[1721752327939,0.002794,66375.0,66372.0,0.150664]
[1721752328159,0.03332725,66375.0,66369.0,0.301344]
[1721752328305,0.07348942,66372.0,66368.0,0.301348]
[1721752328506,0.07348942,66372.0,66357.0,0.070208]
[1721752328507,0.03053325,66368.0,66357.0,0.070208]
[1721752328710,0.002794,66368.0,66362.0,0.301374]
[1721752328914,0.03053325,66366.0,66358.0,0.14701991]
[1721752329113,0.03053325,66367.0,66353.0,0.009765]
[1721752329318,0.03053325,66367.0,66359.0,0.301388]
[1721752329319,0.002794,66366.0,66359.0,0.301388]
[1721752329559,0.002794,66364.0,66360.0,0.0602781]
[1721752329800,0.002794,66364.0,66358.0,0.301393]
[1721752329916,0.301387,66360.0,66354.0,0.14701991]
[1721752330131,0.03053325,66355.0,66348.0,0.434]
[1721752330356,0.03053325,66354.0,66351.0,0.150713]
[1721752330567,0.03053325,66354.0,66349.0,0.301436]
[1721752330768,0.03053325,66361.0,66357.0,0.150699]
[1721752330968,0.03053325,66364.0,66350.0,0.14701991]
[1721752331142,0.03053325,66364.0,66361.0,0.15069]
[1721752331143,0.10402267,66364.0,66361.0,0.15069]
[1721752331343,0.03053325,66358.0,66354.0,0.150706]
[1721752331528,0.03053325,66358.0,66354.0,0.16946464]
[1721752331728,0.03053325,66358.0,66354.0,0.01875864]
[1721752332314,0.03053325,66356.0,66346.0,0.0784]
[1721752332523,0.03053325,66358.0,66351.0,0.301425]
[1721752332725,0.10402267,66364.0,66354.0,0.301409]
[1721752332927,0.10402267,66364.0,66351.0,0.02409536]
[1721752332928,0.03053325,66366.0,66358.0,0.301395]
[1721752333042,0.03053325,66366.0,66362.0,0.150688]
[1721752333471,0.03053325,66355.0,66342.0,0.000924]
[1721752333676,0.03053325,66355.0,66343.0,0.14701991]
[1721752333934,0.364678,66362.0,66343.0,0.14701991]
[1721752333935,0.03053325,66352.0,66343.0,0.14701991]
[1721752334086,0.150713,66351.0,66344.0,0.301457]
[1721752334286,0.18124425,66352.0,66346.0,0.301448]
[1721752334490,0.03053325,66351.0,66345.0,0.14701991]
[1721752334670,0.18124625,66351.0,66345.0,0.14701991]
[1721752334870,0.03053325,66350.0,66346.0,0.301449]
[1721752335072,0.07348942,66354.0,66348.0,0.150719]
[1721752335411,0.07348942,66354.0,66346.0,0.301446]
[1721752335412,0.10383061,66354.0,66346.0,0.301446]
[1721752335624,0.03053325,66358.0,66349.0,0.06450575]
[1721752335828,0.18122425,66361.0,66352.0,0.301422]
[1721752336028,0.03053325,66365.0,66353.0,0.14701991]
[1721752336232,0.03053325,66361.0,66357.0,0.150699]
[1721752336437,0.03053325,66361.0,66342.0,0.000924]
[1721752336438,0.07348942,66356.0,66352.0,0.30142]
[1721752336757,0.03053325,66358.0,66352.0,0.030142]
[1721752336885,0.03053325,66358.0,66346.0,0.301449]
[1721752336886,0.03053325,66360.0,66342.0,0.000924]
[1721752337092,0.301379,66362.0,66345.0,0.1]
[1721752337093,0.03053325,66362.0,66345.0,0.1]
[1721752337450,0.03053325,66358.0,66353.0,0.301416]
[1721752337604,0.03053325,66362.0,66354.0,0.30141]
[1721752337804,0.03053325,66365.0,66355.0,0.2543629]
[1721752338031,0.03053325,66362.0,66355.0,0.20951991]
[1721752338262,0.03053325,66358.0,66355.0,0.02921199]
[1721752338437,0.03053325,66362.0,66357.0,0.150699]
[1721752338645,0.150688,66362.0,66357.0,0.150699]
[1721752338801,0.18122125,66362.0,66357.0,0.150699]
[1721752339003,0.03053325,66366.0,66348.0,0.14701991]
[1721752339205,0.18122325,66362.0,66352.0,0.30142]
[1721752339418,0.03053325,66362.0,66353.0,0.14701991]
[1721752339631,0.07348942,66363.0,66357.0,0.301399]
[1721752339828,0.07348942,66363.0,66358.0,0.301392]
[1721752340028,0.07348942,66363.0,66353.0,0.1617219]
[1721752340556,0.07348942,66363.0,66356.0,0.301401]
[1721752340766,0.07348942,66363.0,66362.0,0.150688]
[1721752341374,0.07348942,66363.0,66362.0,0.452065]
[1721752341573,0.11383325,66375.0,66362.0,0.14701991]
[1721752341776,0.03053325,66372.0,66370.0,0.150669]
[1721752342041,0.07348942,66374.0,66363.0,0.14701991]
[1721752342234,0.10402267,66374.0,66366.0,0.0603]
[1721752342551,0.03053325,66372.0,66366.0,0.20731991]
[1721752342754,0.03332725,66371.0,66370.0,0.150669]
[1721752342985,0.03053325,66365.0,66358.0,0.0648]
[1721752343188,0.03053325,66364.0,66358.0,0.21181991]
[1721752343440,0.07348942,66360.0,66358.0,0.36251591]
[1721752343669,0.03053325,66358.0,66350.0,0.0648]
[1721752343883,0.03053325,66358.0,66351.0,0.16158991]
[1721752344095,0.03053325,66358.0,66354.0,0.301413]
[1721752344401,0.03053325,66358.0,66356.0,0.1507]
[1721752344624,0.03053325,66358.0,66356.0,0.29772091]
[1721752344846,0.03053325,66358.0,66357.0,0.1507]
[1721752345441,0.03053325,66370.0,66357.0,0.14701991]
[1721752345641,0.07348942,66365.0,66364.0,0.150684]
[1721752345793,0.10402267,66365.0,66362.0,0.150687]
[1721752346084,0.07348942,66365.0,66362.0,0.150687]
[1721752346501,0.07348942,66365.0,66363.0,0.301372]
[1721752346757,0.07348942,66365.0,66363.0,0.150684]
[1721752346972,0.10402267,66365.0,66363.0,0.150684]
[1721752347164,0.03053325,66362.0,66359.0,0.301388]
[1721752347307,0.03053325,66364.0,66362.0,0.150687]
[1721752347506,0.07348942,66365.0,66359.0,0.14701991]
[1721752347711,0.07348942,66365.0,66364.0,0.150684]
[1721752348265,0.03053325,66363.0,66359.0,0.44840791]
[1721752348487,0.03053325,66363.0,66344.0,0.05]
[1721752348488,0.03053325,66354.0,66346.0,0.301448]
[1721752348709,0.03053325,66352.0,66347.0,0.22119911]
[1721752348929,0.07348942,66355.0,66347.0,0.22119911]
[1721752349137,0.07348942,66355.0,66354.0,0.150706]
[1721752349309,0.07348942,66355.0,66354.0,0.452119]
[1721752349943,0.07348942,66355.0,66354.0,0.150706]
[1721752350243,0.07348942,66355.0,66354.0,0.452119]
[1721752350465,0.03053325,66363.0,66354.0,0.14701991]
[1721752350579,0.03053325,66362.0,66360.0,0.150692]
[1721752350779,0.03053325,66360.0,66355.0,0.4932694]
[1721752350980,0.03053325,66360.0,66358.0,0.150697]
[1721752351183,0.0824,66360.0,66355.0,0.14701991]
[1721752351578,0.03053325,66351.0,66345.0,0.301451]
[1721752351770,0.03053325,66351.0,66350.0,0.150715]
[1721752352015,0.03053325,66351.0,66350.0,0.14701991]
[1721752352246,0.03053325,66351.0,66350.0,0.29773491]
[1721752352561,0.03053325,66354.0,66351.0,0.150712]
[1721752353195,0.03053325,66349.0,66343.0,0.301462]
[1721752353415,0.37489742,66356.0,66346.0,0.150724]
[1721752353416,0.03053325,66350.0,66346.0,0.150724]
[1721752353679,0.03053325,66349.0,66346.0,0.14701991]
[1721752353906,0.18124225,66353.0,66349.0,0.150718]
[1721752354130,0.18124425,66352.0,66347.0,0.08172739]
[1721752354348,0.03053325,66350.0,66347.0,0.20744939]
[1721752354592,0.03053325,66349.0,66348.0,0.05502863]
[1721752354792,0.03053325,66349.0,66344.0,0.057173]
[1721752354793,0.03053325,66345.0,66342.0,0.000924]
[1721752355024,0.85767967,66343.0,66342.0,0.000924]
[1721752355524,1.24990425,66343.0,66342.0,0.000924]
[1721752355963,1.24990425,66343.0,66342.0,6e-08]
[1721752356405,1.83728716,66343.0,66342.0,6e-08]
[1721752356818,1.93728716,66343.0,66342.0,6e-08]
[1721752357881,1.41531483,66343.0,66342.0,6e-08]
[1721752358202,0.03053325,66330.0,66329.0,0.150762]
[1721752358409,0.03053325,66336.0,66330.0,0.0632]
[1721752358646,0.03053325,66330.0,66324.0,0.0833]
[1721752358776,0.03053325,66329.0,66325.0,0.15534991]
[1721752358973,0.03053325,66331.0,66325.0,0.00833]
[1721752359315,0.1389,66343.0,66327.0,0.301536]
[1721752359316,0.03053325,66333.0,66327.0,0.301536]
[1721752359522,0.03053325,66340.0,66335.0,0.301499]
[1721752359722,0.03053325,66338.0,66337.0,0.452235]
[1721752359922,0.03053325,66340.0,66337.0,0.452235]
[1721752360150,0.03053325,66340.0,66338.0,0.150742]
[1721752360364,0.03053325,66343.0,66337.0,0.301489]
[1721752360568,0.03053325,66345.0,66339.0,0.14701991]
[1721752360706,0.02071082,66342.0,66339.0,0.13888482]
[1721752360927,0.02071082,66342.0,66337.0,0.04786748]
[1721752360928,0.02071082,66339.0,66337.0,0.04786748]
[1721752361383,0.02071082,66337.0,66332.0,0.301511]
[1721752361590,0.301464,66343.0,66332.0,0.301511]
[1721752361591,0.17144782,66341.0,66336.0,0.150747]
[1721752361808,0.02071082,66337.0,66336.0,0.150747]
[1721752362022,0.150736,66341.0,66336.0,0.24082509]
[1721752362023,0.02071082,66339.0,66336.0,0.24082509]
[1721752362255,0.02071082,66339.0,66336.0,0.09007809]
[1721752362680,0.02071082,66341.0,66336.0,0.09007809]
[1721752362926,0.02071082,66340.0,66336.0,0.09007809]
[1721752363308,0.02071082,66335.0,66333.0,0.29777291]
[1721752363581,0.02071082,66335.0,66334.0,0.150752]
[1721752363784,0.02071082,66335.0,66333.0,0.14701991]
[1721752363785,0.02071082,66334.0,66333.0,0.14701991]
[1721752363993,0.15075,66335.0,66327.0,0.150767]
[1721752363994,0.02071082,66329.0,66327.0,0.150767]
[1721752364200,0.02071082,66332.0,66331.0,0.150759]
[1721752364405,0.02071082,66333.0,66328.0,0.14701991]
[1721752364605,0.02071082,66336.0,66328.0,0.17115931]
[1721752364823,0.02071082,66336.0,66333.0,0.150753]
[1721752365589,0.301476,66341.0,66331.0,0.301514]
[1721752365590,0.02071082,66335.0,66331.0,0.301514]
[1721752365789,0.02071082,66335.0,66329.0,0.14701991]
[1721752365790,0.02071082,66331.0,66329.0,0.14701991]
[1721752366018,0.301501,66335.0,66330.0,0.15076]
[1721752366019,0.02071082,66333.0,66330.0,0.15076]
[1721752366222,0.02071082,66331.0,66330.0,0.14701991]
[1721752366393,0.02071082,66331.0,66330.0,0.29778091]
[1721752366593,0.150743,66338.0,66334.0,0.150751]
[1721752366794,0.17145382,66338.0,66333.0,0.150753]
[1721752366948,0.02071082,66336.0,66333.0,0.21068159]
[1721752367329,0.301479,66340.0,66335.0,0.150748]
[1721752367330,0.02071082,66339.0,66335.0,0.150748]
[1721752367649,0.17144682,66341.0,66335.0,0.39756825]
[1721752367850,0.02071082,66342.0,66338.0,0.150742]
[1721752368053,0.02071082,66341.0,66336.0,0.06990713]
[1721752368262,0.02071082,66342.0,66337.0,0.14701991]
[1721752368461,0.376716,66354.0,66345.0,0.150727]
[1721752368462,0.02071082,66346.0,66345.0,0.150727]
[1721752368685,0.02071082,66347.0,66346.0,0.150724]
[1721752369096,0.02071082,66347.0,66344.0,0.150728]
[1721752369294,0.02071082,66347.0,66343.0,0.14701991]
[1721752369477,0.02071082,66347.0,66346.0,0.150724]
[1721752369688,0.02071082,66351.0,66350.0,0.150715]
[1721752369926,0.05,66375.0,66350.0,0.150715]
[1721752369927,0.02361703,66364.0,66350.0,0.14701991]
[1721752370131,0.002794,66363.0,66358.0,0.301394]
[1721752370332,0.02071082,66360.0,66359.0,0.150695]
[1721752370536,0.02071082,66360.0,66359.0,0.0452089]
[1721752370733,0.02071082,66358.0,66357.0,0.150699]
[1721752370966,0.02071082,66358.0,66357.0,0.452099]
[1721752371363,0.02071082,66357.0,66356.0,0.150701]
[1721752372014,0.02071082,66353.0,66349.0,0.301435]
[1721752372178,0.02071082,66353.0,66351.0,0.150712]
[1721752372979,0.02071082,66355.0,66351.0,0.150712]
[1721752373323,0.22419142,66356.0,66349.0,0.44845491]
[1721752373324,0.02071082,66353.0,66350.0,0.150715]
[1721752373521,0.02071082,66353.0,66351.0,0.150712]
[1721752373899,0.02071082,66352.0,66350.0,0.07778693]
[1721752374100,0.02071082,66352.0,66349.0,0.14701991]
[1721752374101,0.02071082,66355.0,66352.0,0.15071]
[1721752374405,0.02071082,66350.0,66348.0,0.15072]
[1721752374605,0.07348942,66349.0,66338.0,0.1453]
[1721752374804,0.07348942,66349.0,66339.0,0.44849891]
[1721752374805,0.02071082,66347.0,66339.0,0.44849891]
[1721752375007,0.002794,66348.0,66340.0,0.301476]
[1721752375008,0.02071082,66345.0,66340.0,0.301476]
[1721752375207,0.02071082,66343.0,66342.0,0.150733]
[1721752375563,0.02071082,66343.0,66342.0,0.29775391]
[1721752375688,0.02071082,66346.0,66343.0,0.301463]
[1721752375903,0.02071082,66349.0,66345.0,0.150726]
[1721752376129,0.02071082,66353.0,66345.0,0.14701991]
[1721752376447,0.00084,66352.0,66351.0,0.452139]
[1721752376651,0.00084,66352.0,66350.0,0.150715]
[1721752376951,0.00084,66352.0,66351.0,0.59915991]
[1721752381429,0.00084,66352.0,66351.0,0.45214]
[1721752381762,0.00084,66352.0,66351.0,0.24077339]
[1721752381961,0.00084,66352.0,66351.0,0.09006039]
[1721752382188,0.00084,66352.0,66351.0,0.150713]
[1721752383759,0.02071082,66351.0,66350.0,0.14701991]
[1721752383957,0.00084,66352.0,66350.0,0.14701991]
[1721752384392,0.00084,66352.0,66351.0,0.150713]
[1721752384591,0.00084,66352.0,66350.0,0.14701991]
[1721752384795,0.00084,66352.0,66351.0,0.150713]
[1721752384990,0.17142982,66349.0,66343.0,0.30146]
[1721752385297,0.02071082,66339.0,66334.0,0.609827]
[1721752385496,0.21698942,66348.0,66335.0,0.14701991]
[1721752385497,0.02071082,66336.0,66335.0,0.14701991]
[1721752385933,0.02071082,66339.0,66335.0,0.14701991]
[1721752386144,0.02071082,66341.0,66336.0,0.301493]
[1721752386371,0.02071082,66343.0,66338.0,0.301486]
[1721752386594,0.002794,66342.0,66338.0,0.301486]
[1721752386737,0.02350482,66342.0,66337.0,0.30149]
[1721752386950,0.17145082,66339.0,66338.0,0.07500069]
[1721752387160,0.02071082,66337.0,66336.0,0.14701991]
[1721752387364,0.02071082,66342.0,66339.0,0.150739]
[1721752387572,0.002794,66341.0,66339.0,0.150739]
[1721752387773,0.02071082,66339.0,66336.0,0.29776691]
[1721752387984,0.02071082,66338.0,66337.0,0.18771655]
[1721752388363,0.02071082,66338.0,66337.0,0.48920655]
[1721752388531,0.301456,66345.0,66338.0,0.150743]
[1721752388532,0.02071082,66339.0,66338.0,0.150743]
[1721752388670,0.02071082,66339.0,66338.0,0.09377245]
[1721752388874,0.02071082,66338.0,66336.0,0.14701991]
[1721752389079,0.02071082,66338.0,66336.0,0.29776591]
[1721752389298,0.02071082,66338.0,66337.0,0.150745]
[1721752389496,0.02071082,66337.0,66336.0,0.14701991]
[1721752389702,0.02071082,66338.0,66337.0,0.452235]
[1721752389903,0.02071082,66339.0,66338.0,0.150743]
[1721752390170,0.02071082,66344.0,66338.0,0.14701991]
[1721752390352,0.02071082,66344.0,66343.0,0.150731]
[1721752391274,0.02071082,66342.0,66341.0,0.452208]
[1721752391571,0.02071082,66342.0,66341.0,0.29775591]
[1721752391895,0.02071082,66342.0,66341.0,0.14701991]
[1721752392544,0.02071082,66342.0,66341.0,0.29775591]
[1721752392883,0.02071082,66342.0,66341.0,0.14701991]
[1721752393011,0.02071082,66342.0,66341.0,0.29775591]
[1721752393470,0.02071082,66342.0,66341.0,0.59922791]
[1721752393877,0.02071082,66342.0,66341.0,0.29775591]
[1721752394109,0.02071082,66346.0,66345.0,0.150727]
[1721752394307,0.07432942,66352.0,66345.0,0.150727]
[1721752394308,0.02071082,66351.0,66345.0,0.14701991]
[1721752394512,0.00084,66352.0,66351.0,0.45214]
[1721752394827,0.00084,66352.0,66351.0,0.59915991]
[1721752395030,0.00084,66352.0,66351.0,0.90058691]
[1721752395816,0.00084,66352.0,66351.0,1.25201391]
[1721752396028,0.02071082,66351.0,66345.0,0.00904364]
[1721752396237,0.02071082,66342.0,66336.0,0.5391]
[1721752396444,0.02071082,66342.0,66336.0,0.68611991]
[1721752396663,0.02071082,66346.0,66337.0,0.14701991]
[1721752396866,0.02071082,66346.0,66338.0,0.44844565]
[1721752397069,0.02071082,66346.0,66344.0,0.150728]
[1721752397246,0.02071082,66349.0,66346.0,0.150724]
[1721752397423,0.02071082,66350.0,66347.0,0.1767943]
[1721752397625,0.02071082,66348.0,66347.0,0.3275153]
[1721752397827,0.02071082,66351.0,66349.0,0.150717]
[1721752398031,0.02071082,66351.0,66348.0,0.150719]
[1721752398228,0.02071082,66348.0,66347.0,0.14701991]
[1721752398431,0.00084,66352.0,66347.0,0.14701991]
[1721752398432,0.02155082,66352.0,66347.0,0.14701991]
[1721752398656,0.02155082,66352.0,66349.0,0.150717]
[1721752399059,0.00084,66352.0,66349.0,0.301434]
[1721752399263,0.00084,66352.0,66350.0,0.150714]
[1721752399465,0.00084,66352.0,66351.0,0.150713]
[1721752399665,0.00084,66352.0,66351.0,0.29773291]
[1721752399927,0.00084,66352.0,66351.0,1.06378691]
[1721752400142,0.00084,66352.0,66351.0,1.36521391]
[1721752400475,0.00084,66352.0,66351.0,2.48664091]
[1721752400679,0.00084,66352.0,66351.0,1.66664091]
[1721752400931,0.00084,66352.0,66351.0,1.81360356]
[1721752401692,0.00084,66352.0,66351.0,2.61360356]
[1721752401901,0.00084,66352.0,66351.0,2.70289274]
[1721752402973,0.00084,66352.0,66351.0,2.67360356]
[1721752403207,0.00084,66352.0,66351.0,0.96378691]
[1721752403330,0.02155082,66352.0,66351.0,0.30681126]
[1721752403533,0.02155082,66352.0,66348.0,0.15072]
[1721752403740,0.02071082,66351.0,66349.0,0.150717]
[1721752403967,0.02071082,66350.0,66348.0,0.14701991]
[1721752404176,0.00084,66352.0,66351.0,0.301427]
[1721752404375,0.00084,66352.0,66351.0,0.90058691]
[1721752404578,0.00084,66352.0,66351.0,1.34897656]
[1721752405047,0.00084,66352.0,66351.0,1.20201391]
[1721752405262,0.00084,66352.0,66351.0,1.60344091]
[1721752405633,0.00084,66352.0,66351.0,4.06795709]
[1721752406608,0.00084,66373.0,66372.0,0.753327]
[1721752406827,0.00084,66373.0,66372.0,1.20167791]
[1721752407097,0.00084,66373.0,66372.0,1.3284257]
[1721752407275,0.02071082,66367.0,66365.0,0.609827]
[1721752407470,0.02071082,66370.0,66369.0,0.150672]
[1721752407850,0.02071082,66370.0,66369.0,0.452017]
[1721752408058,0.02071082,66370.0,66369.0,0.15067]
[1721752408262,0.02155082,66373.0,66369.0,0.2679071]
[1721752408621,0.02155082,66373.0,66372.0,0.150665]
[1721752408803,0.02155082,66373.0,66372.0,0.451996]
[1721752409142,0.02071082,66370.0,66369.0,0.57290219]
[1721752409314,0.02155082,66373.0,66372.0,0.451996]
[1721752409517,0.02155082,66373.0,66372.0,0.150665]
[1721752409745,0.00084,66373.0,66372.0,0.451996]
[1721752409915,0.00084,66373.0,66372.0,0.56881618]
[1721752410274,0.02155082,66373.0,66372.0,0.56881618]
[1721752410498,0.00084,66373.0,66372.0,0.87014718]
[1721752411912,0.00084,66373.0,66372.0,1.31849809]
[1721752412119,0.02155082,66373.0,66372.0,0.90034691]
[1721752412357,0.00084,66373.0,66372.0,0.90034691]
[1721752412555,0.00084,66373.0,66369.0,0.150672]
[1721752412556,0.02071082,66370.0,66369.0,0.150672]
[1721752412795,0.02155082,66373.0,66372.0,0.150665]
[1721752413097,0.02155082,66373.0,66372.0,0.451996]
[1721752413249,0.02155082,66373.0,66372.0,0.753327]
[1721752413456,0.02155082,66373.0,66372.0,0.84720168]
[1721752413810,0.02155082,66373.0,66372.0,0.54587068]
[1721752414399,0.02155082,66373.0,66370.0,0.301338]
[1721752414400,0.02071082,66371.0,66370.0,0.301338]
[1721752414613,0.02071082,66370.0,66369.0,0.14701991]
[1721752414853,0.02071082,66370.0,66369.0,0.29769191]
[1721752415025,0.02071082,66370.0,66369.0,0.14701991]